bitfinex/quotes_SOLUSD_20250130
["timestamp","ask_amount","ask_price","bid_price","bid_amount"]
[1738252434680,13.02983553,242.48,242.43,0.03]
[1738252434881,0.76863764,242.52,242.47,12.26119789]
[1738252435211,6.42881206,242.57,242.49,12.26119789]
[1738252435212,13.09283553,242.56,242.49,12.26119789]
[1738252435711,13.09283553,242.56,242.47,12.26119789]
[1738252435913,12.26119789,242.54,242.48,0.61852465]
[1738252436203,12.26119789,242.52,242.45,12.26119789]
[1738252436616,0.76863764,242.51,242.45,12.26119789]
[1738252436914,0.76863764,242.51,242.46,4.1243]
[1738252439410,12.26119789,242.5,242.44,4.1247]
[1738252439599,0.76863764,242.49,242.44,4.1247]
[1738252440388,0.76863764,242.49,242.43,0.03]
[1738252440389,0.76863764,242.49,242.43,4.1548]
[1738252440906,0.76863764,242.49,242.43,0.03]
[1738252441112,12.26119789,242.52,242.44,12.87989503]
[1738252441901,12.26119789,242.54,242.46,12.26119789]
[1738252442106,12.26119789,242.52,242.44,12.87978481]
[1738252442291,0.76863764,242.51,242.44,12.87978481]
[1738252442812,14.18048617,242.51,242.44,0.61858692]
[1738252443014,14.18048617,242.51,242.43,0.03]
[1738252443015,12.26119789,242.48,242.43,0.03]
[1738252443321,0.76863764,242.47,242.43,0.03]
[1738252444488,12.26119789,242.48,242.43,0.03]
[1738252444688,12.26119789,242.51,242.44,12.26119789]
[1738252444912,14.64471206,242.6,242.45,0.61862402]
[1738252444913,12.26119789,242.53,242.45,0.61862402]
[1738252445094,12.26119789,242.53,242.46,12.26119789]
[1738252445416,13.41184853,242.55,242.48,12.26119789]
[1738252445417,12.26119789,242.55,242.48,12.26119789]
[1738252445623,12.26119789,242.57,242.5,12.26119789]
[1738252445788,12.26119789,242.57,242.51,0.6184463]
[1738252446215,12.26119789,242.57,242.51,0.61844993]
[1738252446513,0.83163764,242.56,242.52,4.1233]
[1738252447112,12.26119789,242.55,242.49,4.1238]
[1738252447314,12.26119789,242.53,242.47,4.124]
[1738252447498,12.26119789,242.51,242.47,4.124]
[1738252448215,0.76863764,242.5,242.45,4.1244]
[1738252448622,0.76863764,242.5,242.44,4.1547]
[1738252449003,12.26119789,242.49,242.44,4.1547]
[1738252449818,0.76863764,242.48,242.44,4.1547]
[1738252450026,12.26119789,242.47,242.44,0.03]
[1738252450332,0.76863764,242.46,242.44,0.03]
[1738252451020,12.26119789,242.47,242.44,0.03]
[1738252451993,12.26119789,242.45,242.44,0.03]
[1738252453222,25.67304642,242.45,242.44,0.03]
[1738252453831,12.26119789,242.47,242.44,0.03]
[1738252454128,12.26119789,242.49,242.44,0.03]
[1738252454301,0.76863764,242.48,242.44,0.03]
[1738252455511,12.26119789,242.47,242.44,0.03]
[1738252455821,25.67304642,242.49,242.44,0.03]
[1738252456017,0.76863764,242.48,242.44,0.03]
[1738252457207,6.62200247,242.57,242.44,4.1547]
[1738252457208,13.02983553,242.51,242.44,4.1547]
[1738252457817,20.0,242.5,242.44,0.03]
[1738252458127,0.76863764,242.49,242.44,0.03]
[1738252458439,13.02983553,242.49,242.44,0.03]
[1738252460806,0.76863764,242.49,242.44,0.03]
[1738252461119,20.76863764,242.5,242.44,0.03]
[1738252461317,12.26119789,242.49,242.44,0.03]
[1738252461631,0.76863764,242.48,242.44,0.03]
[1738252466129,20.76863764,242.5,242.44,0.03]
[1738252467445,20.76863764,242.5,242.44,4.1547]
[1738252469055,12.26119789,242.49,242.44,4.1547]
[1738252469239,0.76863764,242.48,242.44,4.1547]
[1738252469555,0.76863764,242.48,242.44,0.03]
[1738252472250,16.38499789,242.49,242.44,0.03]
[1738252472251,13.02983553,242.49,242.44,0.03]
[1738252472662,0.76863764,242.49,242.44,0.03]
[1738252473356,21.25641025,242.48,242.44,0.03]
[1738252473533,0.76863764,242.47,242.44,0.03]
[1738252474058,7.84456172,242.52,242.44,4.1547]
[1738252474263,0.76863764,242.51,242.44,4.1547]
[1738252476164,7.84456172,242.48,242.44,0.03]
[1738252476337,13.41184853,242.49,242.44,0.03]
[1738252476338,7.84456172,242.46,242.44,0.03]
[1738252476544,0.76863764,242.45,242.44,0.03]
[1738252477446,14.18048617,242.45,242.44,0.03]
[1738252477645,22.02504789,242.45,242.44,0.03]
[1738252477944,33.41184853,242.41,242.4,0.03]
[1738252478258,46.15024789,242.41,242.4,0.03]
[1738252478645,50.57661649,242.41,242.4,0.03]
[1738252479368,13.41184853,242.35,242.27,0.063]
[1738252479546,12.27093032,242.28,242.27,0.063]
[1738252480856,25.68277885,242.29,242.27,0.063]
[1738252481062,0.76863764,242.28,242.27,0.063]
[1738252481564,12.27093032,242.31,242.27,0.063]
[1738252481868,0.76863764,242.3,242.27,4.1905]
[1738252482249,13.41184853,242.29,242.27,0.063]
[1738252482449,26.45141649,242.28,242.27,0.063]
[1738252482651,1.0,242.23,242.19,0.03]
[1738252482947,30.76863764,242.22,242.19,0.03]
[1738252483148,0.76863764,242.22,242.19,0.03]
[1738252483351,20.0,242.23,242.19,0.03]
[1738252483570,13.41184853,242.21,242.19,0.03]
[1738252483759,14.18048617,242.2,242.19,0.03]
[1738252484243,26.45141649,242.2,242.19,0.03]
[1738252485141,12.27093032,242.22,242.19,0.03]
[1738252485369,7.1974497,242.21,242.13,12.27093032]
[1738252485547,12.27093032,242.2,242.13,12.27093032]
[1738252485868,12.27093032,242.18,242.12,10.3254]
[1738252486254,13.04526241,242.2,242.14,4.1298]
[1738252486847,12.27093032,242.22,242.14,4.1298]
[1738252487238,13.04516973,242.24,242.15,12.27093032]
[1738252487439,0.77423941,242.24,242.17,12.27093032]
[1738252487652,0.77423941,242.24,242.18,4.1291]
[1738252488066,26.48935931,242.25,242.19,12.27093032]
[1738252488372,25.71524826,242.25,242.21,12.27093032]
[1738252488665,0.77411105,242.27,242.21,12.27093032]
[1738252489375,13.41184853,242.29,242.23,12.27093032]
[1738252489541,13.41184853,242.29,242.24,4.1281]
[1738252489744,0.77397756,242.31,242.25,12.27093032]
[1738252489971,0.77397756,242.31,242.24,4.1281]
[1738252490477,0.77397756,242.31,242.16,12.27093032]
[1738252490478,13.41184853,242.24,242.13,10.325]
[1738252490640,12.27093032,242.2,242.13,10.325]
[1738252491757,12.27093032,242.22,242.13,22.59593032]
[1738252492277,12.27093032,242.22,242.15,12.27093032]
[1738252492878,12.27093032,242.22,242.16,4.1295]
[1738252495067,12.27093032,242.2,242.16,4.1295]
[1738252495268,0.77425234,242.19,242.14,4.1296]
[1738252495672,12.27093032,242.16,242.12,4.16]
[1738252496378,0.77439255,242.15,242.12,0.03]
[1738252497269,25.68277885,242.14,242.12,0.03]
[1738252497471,14.18635463,242.13,242.12,0.03]
[1738252498665,13.41184853,242.13,242.12,0.03]
[1738252498878,12.27093032,242.17,242.12,0.03]
[1738252499066,0.77440395,242.16,242.12,0.03]
[1738252499366,13.41184853,242.15,242.12,0.03]
[1738252499578,13.41184853,242.15,242.09,12.26001614]
[1738252500089,13.04533427,242.16,242.09,12.26001614]
[1738252500296,0.77436748,242.21,242.15,12.27093032]
[1738252500592,6.42881206,242.22,242.19,12.27093032]
[1738252500754,6.42881206,242.22,242.1,16.4568]
[1738252500755,6.42881206,242.22,242.15,12.27093032]
[1738252501079,12.27093032,242.19,242.11,12.27093032]
[1738252501285,12.27093032,242.17,242.1,14.4568]
[1738252501661,12.27093032,242.17,242.11,12.27093032]
[1738252501964,13.04523173,242.19,242.11,12.27093032]
[1738252502295,13.04523173,242.19,242.12,4.1301]
[1738252502605,12.27093032,242.19,242.12,14.4555]
[1738252502768,12.27093032,242.21,242.14,12.27093032]
[1738252503397,0.7742354,242.2,242.12,26.72643032]
[1738252503580,12.27093032,242.19,242.12,14.4555]
[1738252503780,0.063,242.24,242.12,4.1301]
[1738252503781,12.27093032,242.15,242.12,4.1301]
[1738252503969,0.77444057,242.14,242.12,4.1301]
[1738252504173,12.27093032,242.15,242.12,4.1301]
[1738252504368,12.27093032,242.15,242.09,4.1306]
[1738252504875,0.77444175,242.14,242.09,4.1306]
[1738252505075,25.68277885,242.13,242.09,4.1306]
[1738252505307,0.77450248,242.12,242.09,4.1306]
[1738252505474,25.68277885,242.13,242.09,4.1306]
[1738252506492,25.68277885,242.13,242.07,4.131]
[1738252506690,0.77452405,242.17,242.1,12.27093032]
[1738252506876,0.77436058,242.18,242.1,12.27093032]
[1738252507071,0.77436058,242.18,242.1,6.80190366]
[1738252507270,4.1911,242.24,242.14,12.27093032]
[1738252507271,12.27093032,242.22,242.14,12.27093032]
[1738252507487,0.77430286,242.23,242.16,12.27093032]
[1738252507694,0.063,242.24,242.18,12.27093032]
[1738252508006,12.27093032,242.19,242.05,12.27093032]
[1738252508177,12.27093032,242.13,242.05,12.27093032]
[1738252508805,12.27093032,242.13,242.06,4.1312]
[1738252509683,12.27093032,242.15,242.06,4.1312]
[1738252509888,12.27093032,242.13,242.06,4.1312]
[1738252510093,12.27093032,242.11,242.06,4.1312]
[1738252510594,12.27093032,242.09,242.03,10.3289]
[1738252511602,12.27093032,242.09,242.02,4.1318]
[1738252511603,0.77450819,242.08,242.02,4.1318]
[1738252511813,12.27093032,242.09,242.02,4.1318]
[1738252512314,0.77461328,242.08,242.02,4.1318]
[1738252512818,12.27093032,242.07,242.0,4.1322]
[1738252514991,12.27093032,242.09,242.01,12.27093032]
[1738252515495,12.27093032,242.09,242.02,12.27093032]
[1738252515759,12.27093032,242.07,241.98,12.27093032]
[1738252516041,12.27093032,242.03,241.94,12.27093032]
[1738252516533,12.27093032,242.07,241.98,12.27093032]
[1738252516713,12.27093032,242.07,242.0,12.27093032]
[1738252516905,12.27093032,242.09,242.0,12.27093032]
[1738252517114,12.27093032,242.11,242.02,12.27093032]
[1738252517343,0.77457413,242.1,242.02,12.27093032]
[1738252518551,12.27093032,242.06,242.01,4.132]
[1738252518837,12.27093032,242.04,242.01,4.132]
[1738252519022,13.04568054,242.09,242.01,12.27093032]
[1738252519416,12.27093032,242.07,241.99,12.27093032]
[1738252519661,12.27093032,242.05,241.98,10.3314]
[1738252519829,0.77476212,242.04,241.98,10.3314]
[1738252520150,12.27093032,241.99,241.95,4.133]
[1738252520323,12.27093032,241.96,241.95,4.133]
[1738252520569,12.27093032,241.96,241.93,4.1332]
[1738252520722,12.27093032,241.96,241.9,0.03]
[1738252520723,12.27093032,241.94,241.91,4.1336]
[1738252520927,12.27093032,241.92,241.9,0.03]
[1738252521232,0.77508877,241.91,241.9,0.03]
[1738252521443,13.04601909,241.91,241.9,0.03]
[1738252521860,26.45786762,241.91,241.9,0.03]
[1738252522230,13.04601909,241.91,241.9,0.03]
[1738252523221,0.77521065,241.96,241.9,0.03]
[1738252523419,12.27093032,241.94,241.9,0.03]
[1738252523655,13.41184853,241.98,241.9,0.03]
[1738252523656,12.27093032,241.92,241.9,0.03]
[1738252524438,13.04602021,241.91,241.9,0.03]
[1738252524749,26.45786874,241.91,241.9,0.03]
[1738252526151,13.04602021,241.91,241.9,0.03]
[1738252527045,34.00696874,241.91,241.9,0.03]
[1738252527241,12.27093032,241.88,241.87,0.02187499]
[1738252527436,13.04624038,241.88,241.87,0.02187499]
[1738252527634,12.27093032,241.88,241.87,0.02187499]
[1738252528342,25.68277885,241.88,241.87,0.02187499]
[1738252528537,12.27093032,241.88,241.87,0.02187499]
[1738252528889,12.27093032,241.88,241.82,4.08152745]
[1738252529036,12.27093032,241.86,241.82,4.08152745]
[1738252529234,12.27093032,241.88,241.82,4.08152745]
[1738252529663,12.27093032,241.88,241.87,0.03]
[1738252531148,29.81697885,241.88,241.87,0.03]
[1738252531687,29.81697885,241.88,241.8,4.1356]
[1738252531957,13.41184853,241.8,241.75,0.21]
[1738252532130,12.27093032,241.76,241.75,0.21]
[1738252533863,12.27093032,241.78,241.76,4.1363]
[1738252534159,12.27093032,241.84,241.76,26.74803032]
[1738252534367,12.27093032,241.88,241.8,12.27093032]
[1738252534532,0.77532719,241.87,241.8,12.27093032]
[1738252535147,13.04626876,241.88,241.8,12.27093032]
[1738252535847,12.27093032,241.86,241.78,12.27093032]
[1738252536137,12.27093032,241.86,241.79,14.4753]
[1738252536531,0.77529762,241.85,241.79,14.4753]
[1738252536734,20.49225065,241.85,241.79,14.4753]
[1738252537208,19.71695303,241.83,241.79,14.4753]
[1738252537411,19.71695303,241.87,241.79,14.4753]
[1738252537917,0.77534103,241.86,241.79,14.4753]
[1738252538316,19.71695303,241.87,241.79,14.4753]
[1738252538822,19.71695303,241.82,241.79,4.1358]
[1738252539019,19.71695303,241.8,241.77,4.136]
[1738252539218,19.71695303,241.78,241.75,4.3463]
[1738252539423,19.71695303,241.76,241.75,4.3463]
[1738252540028,19.71695303,241.82,241.75,34.40445303]
[1738252540340,20.49254502,241.86,241.78,14.4758]
[1738252540641,19.71695303,241.86,241.79,19.71695303]
[1738252540842,19.71695303,241.88,241.79,19.71695303]
[1738252541024,0.77529602,241.87,241.79,19.71695303]
[1738252541227,19.71695303,241.86,241.78,14.4758]
[1738252541534,0.77529602,241.87,241.78,14.4758]
[1738252541535,19.71695303,241.84,241.78,14.4758]
[1738252542347,19.71695303,241.86,241.78,14.4758]
[1738252542550,19.71695303,241.86,241.79,19.71695303]
[1738252542757,0.063,241.87,241.79,19.71695303]
[1738252543247,39.71695303,241.8,241.75,0.21]
[1738252543442,19.71695303,241.76,241.75,0.21]
[1738252545049,33.12880156,241.76,241.75,0.21]
[1738252545254,33.90466934,241.76,241.75,0.21]
[1738252546354,20.49282081,241.76,241.58,19.71695303]
[1738252546524,19.71695303,241.7,241.62,19.71695303]
[1738252546861,0.7758381,241.75,241.58,1.0]
[1738252546862,19.71695303,241.65,241.59,4.1391]
[1738252547022,19.71695303,241.63,241.59,4.1391]
[1738252547232,19.71695303,241.63,241.55,10.3494]
[1738252547233,0.77606616,241.62,241.55,4.1399]
[1738252547526,19.71695303,241.63,241.55,4.1399]
[1738252548143,13.41184853,241.67,241.52,19.71695303]
[1738252548144,19.71695303,241.61,241.52,19.71695303]
[1738252548447,19.71695303,241.61,241.54,4.14]
[1738252548746,19.71695303,241.61,241.54,23.85695303]
[1738252549248,19.71695303,241.58,241.52,4.1403]
[1738252549453,13.41184853,241.65,241.52,4.1403]
[1738252549454,19.71695303,241.56,241.52,4.1403]
[1738252549753,0.77632794,241.55,241.52,4.1403]
[1738252549952,19.71695303,241.58,241.52,4.1403]
[1738252550323,0.7762589,241.57,241.52,4.1403]
[1738252550522,19.71695303,241.58,241.52,4.1403]
[1738252550745,19.71695303,241.6,241.52,23.85725303]
[1738252550932,0.77622543,241.59,241.52,23.85725303]
[1738252551136,19.71695303,241.6,241.52,23.85725303]
[1738252551347,0.77622638,241.63,241.54,19.71695303]
[1738252551348,19.71695303,241.62,241.54,19.71695303]
[1738252551845,0.77612918,241.61,241.54,19.71695303]
[1738252552034,19.71695303,241.62,241.54,19.71695303]
[1738252552427,0.77610526,241.61,241.54,19.71695303]
[1738252552846,20.49305829,241.61,241.53,19.71695303]
[1738252553239,19.71695303,241.59,241.51,30.06845303]
[1738252554954,19.71695303,241.61,241.53,19.71695303]
[1738252555540,19.71695303,241.55,241.52,0.03]
[1738252555749,19.71695303,241.53,241.52,0.03]
[1738252559145,19.71695303,241.53,241.45,14.4957]
[1738252559451,19.71695303,241.5,241.45,14.4957]
[1738252561350,0.77644486,241.55,241.45,14.4957]
[1738252561351,19.71695303,241.52,241.45,14.4957]
[1738252561554,19.71695303,241.56,241.48,19.71695303]
[1738252561860,19.71695303,241.58,241.5,19.71695303]
[1738252562248,19.71695303,241.6,241.51,14.4921]
[1738252562453,19.71695303,241.64,241.56,19.71695303]
[1738252562651,19.71695303,241.6,241.52,19.71695303]
[1738252562834,19.71695303,241.56,241.51,14.4921]
[1738252563346,19.71695303,241.54,241.51,14.4921]
[1738252563553,19.71695303,241.52,241.51,4.1406]
[1738252563758,19.71695303,241.54,241.51,4.1406]
[1738252563935,19.71695303,241.52,241.51,4.1406]
[1738252564256,19.71695303,241.52,241.46,10.3534]
[1738252564455,19.71695303,241.54,241.46,30.07035303]
[1738252565446,19.71695303,241.54,241.46,34.21175303]
[1738252565665,19.71695303,241.54,241.48,19.71695303]
[1738252565963,19.71695303,241.59,241.52,19.71695303]
[1738252566151,19.71695303,241.65,241.57,19.71695303]
[1738252566470,19.71695303,241.63,241.55,19.71695303]
[1738252566759,19.71695303,241.63,241.5,1.582]
[1738252566760,19.71695303,241.61,241.53,19.71695303]
[1738252567347,19.71695303,241.61,241.54,14.4903]
[1738252568076,0.77612446,241.67,241.59,19.71695303]
[1738252568240,20.49290127,241.72,241.64,19.71695303]
[1738252568676,19.71695303,241.74,241.66,19.71695303]
[1738252568841,19.71695303,241.74,241.6,1.0]
[1738252568842,0.063,241.75,241.68,19.71695303]
[1738252569048,0.77555998,241.74,241.67,19.71695303]
[1738252569255,19.77995303,241.75,241.67,19.71695303]
[1738252569456,19.71695303,241.73,241.68,4.1377]
[1738252569661,19.71695303,241.69,241.61,19.71695303]
[1738252570146,19.71695303,241.65,241.58,4.1394]
[1738252570350,19.71695303,241.63,241.58,4.1394]
[1738252570666,0.77606593,241.62,241.55,19.71695303]
[1738252570834,19.71695303,241.63,241.56,4.1396]
[1738252571739,19.71695303,241.59,241.54,4.1399]
[1738252572133,19.71695303,241.59,241.52,0.03]
[1738252572134,0.77621346,241.58,241.52,4.1703]
[1738252572336,19.71695303,241.53,241.52,0.03]
[1738252573369,33.9053254,241.53,241.52,0.03]
[1738252574368,20.49347687,241.53,241.52,0.03]
[1738252574542,19.71695303,241.53,241.52,0.03]
[1738252575261,33.90533879,241.53,241.52,0.03]
[1738252576073,33.90533879,241.53,241.4,23.85935303]
[1738252576074,20.49349026,241.53,241.42,19.71695303]
[1738252576265,19.71695303,241.51,241.42,19.71695303]
[1738252576445,0.77653923,241.5,241.42,19.71695303]
[1738252577168,19.71695303,241.49,241.42,19.71695303]
[1738252577373,0.77662814,241.48,241.4,23.85935303]
[1738252577581,0.77662814,241.48,241.4,11.84637849]
[1738252577766,19.71695303,241.47,241.4,11.84637849]
[1738252578089,19.71695303,241.49,241.42,19.71695303]
[1738252578260,0.7765963,241.55,241.48,19.71695303]
[1738252579464,0.7765963,241.55,241.49,4.1409]
[1738252579664,19.71695303,241.54,241.49,4.1409]
[1738252579972,0.77649651,241.53,241.49,4.1409]
[1738252580477,0.77640262,241.55,241.5,19.71695303]
[1738252580707,0.77640262,241.55,241.49,4.1409]
[1738252582793,14.18825115,241.55,241.49,4.1409]
[1738252582991,19.71695303,241.52,241.45,4.1416]
[1738252583320,19.71695303,241.5,241.45,4.1416]
[1738252583658,19.71695303,241.48,241.43,4.1418]
[1738252583789,0.77665837,241.47,241.43,4.1418]
[1738252584108,0.77665837,241.47,241.41,4.1423]
[1738252584351,0.77669582,241.5,241.44,19.71695303]
[1738252584531,0.77669582,241.5,241.4,0.03]
[1738252584532,19.71695303,241.47,241.4,0.03]
[1738252584704,13.41184853,241.41,241.4,0.03]
[1738252584951,14.18886073,241.41,241.4,0.03]
[1738252586313,36.4811,241.4,241.22,19.71695303]
[1738252586510,19.71695303,241.31,241.22,19.71695303]
[1738252586838,0.7771905,241.3,241.22,19.71695303]
[1738252587548,19.71695303,241.33,241.24,19.71695303]
[1738252587849,19.71695303,241.31,241.22,19.71695303]
[1738252588024,0.7771588,241.3,241.22,19.71695303]
[1738252588358,19.71695303,241.25,241.23,4.1454]
[1738252588520,20.49428751,241.24,241.16,4.1466]
[1738252589997,20.49428751,241.24,241.16,19.71695303]
[1738252591525,19.71695303,241.24,241.17,14.5125]
[1738252591719,19.71695303,241.26,241.19,19.71695303]
[1738252591907,19.71695303,241.28,241.19,19.71695303]
[1738252592112,0.77723307,241.27,241.21,19.71695303]
[1738252592631,0.77723307,241.27,241.19,19.71695303]
[1738252592922,19.71695303,241.26,241.19,19.71695303]
[1738252593498,19.71695303,241.26,241.2,4.1459]
[1738252593892,19.71695303,241.28,241.21,19.71695303]
[1738252594093,19.71695303,241.3,241.23,19.71695303]
[1738252594324,0.77719087,241.29,241.23,19.71695303]
[1738252594709,0.77719087,241.29,241.21,19.74695303]
[1738252595514,0.77719087,241.29,241.22,14.5094]
[1738252595714,0.77719087,241.29,241.23,19.71695303]
[1738252595896,19.71695303,241.3,241.23,19.71695303]
[1738252596083,0.77719521,241.29,241.23,19.71695303]
[1738252596592,0.77719475,241.31,241.24,14.5083]
[1738252596904,19.71695303,241.3,241.24,14.5083]
[1738252597511,19.71695303,241.32,241.25,19.71695303]
[1738252597678,0.7771443,241.34,241.27,19.71695303]
[1738252597873,19.71695303,241.33,241.25,19.71695303]
[1738252598103,0.77712407,241.32,241.25,19.71695303]
[1738252598307,19.71695303,241.37,241.29,19.71695303]
[1738252598502,20.49398278,241.39,241.31,19.71695303]
[1738252599397,0.77702975,241.39,241.33,19.71695303]
[1738252599601,0.83988135,241.4,241.33,19.71695303]
[1738252599805,0.83988135,241.4,241.34,4.1435]
[1738252600192,0.063,241.4,241.37,19.71695303]
[1738252600403,0.063,241.4,241.39,19.71695303]
[1738252601105,6.2868,241.5,241.39,19.71695303]
[1738252601106,0.77669183,241.49,241.39,19.71695303]
[1738252601302,0.77669183,241.49,241.43,19.71695303]
[1738252601490,0.77669183,241.49,241.41,19.71695303]
[1738252601988,0.77669183,241.49,241.42,4.1421]
[1738252602515,0.77669183,241.49,241.42,14.4974]
[1738252602683,0.77654791,241.53,241.45,19.71695303]
[1738252603014,19.71695303,241.59,241.51,19.71695303]
[1738252603210,0.77624921,241.58,241.51,19.71695303]
[1738252603394,0.77624426,241.6,241.51,19.71695303]
[1738252603906,19.71695303,241.59,241.52,4.1404]
[1738252604205,0.77624955,241.58,241.52,4.1404]
[1738252604515,0.77624805,241.62,241.55,19.71695303]
[1738252605286,20.556058,241.65,241.57,19.71695303]
[1738252606007,20.556058,241.65,241.58,4.1394]
[1738252606585,19.71695303,241.63,241.58,4.1394]
[1738252606790,0.77616144,241.62,241.58,4.1394]
[1738252607381,19.71695303,241.63,241.58,4.1394]
[1738252607382,0.063,241.6,241.58,4.1394]
[1738252607982,19.71695303,241.59,241.47,14.4943]
[1738252608293,19.71695303,241.56,241.48,19.71695303]
[1738252608483,19.71695303,241.54,241.47,14.4943]
[1738252609303,19.71695303,241.56,241.48,19.71695303]
[1738252609491,13.41184853,241.58,241.48,19.71695303]
[1738252609492,20.49330179,241.58,241.48,19.71695303]
[1738252609691,19.71695303,241.54,241.48,19.71695303]
[1738252610099,19.71695303,241.54,241.46,19.71695303]
[1738252610713,19.71695303,241.56,241.48,19.71695303]
[1738252612222,19.71695303,241.54,241.49,4.1409]
[1738252613204,19.71695303,241.54,241.48,10.3524]
[1738252613387,19.71695303,241.56,241.48,10.3524]
[1738252613712,19.71695303,241.56,241.48,30.06935303]
[1738252614511,19.71695303,241.58,241.5,19.71695303]
[1738252615517,0.063,241.6,241.48,10.3524]
[1738252615518,19.71695303,241.56,241.51,4.1406]
[1738252615701,0.77635104,241.55,241.51,4.1406]
[1738252616103,19.71695303,241.56,241.51,4.1406]
[1738252616416,19.71695303,241.58,241.51,4.1406]
[1738252616721,0.77626937,241.57,241.51,4.1406]
[1738252616901,19.71695303,241.58,241.51,14.4921]
[1738252617404,0.063,241.6,241.56,19.71695303]
[1738252618198,0.0001,241.6,241.58,19.71695303]
[1738252618425,0.0001,241.65,241.61,20.0]
[1738252618609,0.0001,241.65,241.58,19.71695303]
[1738252618610,0.0001,241.65,241.64,19.71695303]
[1738252618923,0.0001,241.73,241.72,19.71695303]
[1738252619291,22.28592216,241.79,241.74,4.1366]
[1738252619498,22.28592216,241.79,241.78,19.71695303]
[1738252620224,0.063,241.81,241.78,19.71695303]
[1738252620918,0.063,241.81,241.74,4.1366]
[1738252620919,19.77995303,241.81,241.74,4.1366]
[1738252621131,19.71695303,241.79,241.72,4.1369]
[1738252621697,20.55535317,241.81,241.74,19.71695303]
[1738252621915,0.063,241.81,241.78,19.71695303]
[1738252622321,19.71695303,241.8,241.72,23.85385303]
[1738252622897,19.71695303,241.74,241.68,4.1377]
[1738252623319,0.77553591,241.79,241.68,23.85465303]
[1738252623320,19.71695303,241.76,241.68,23.85465303]
[1738252623909,0.77553591,241.79,241.66,4.1379]
[1738252623910,19.71695303,241.7,241.66,4.1379]
[1738252624134,19.71695303,241.7,241.62,19.71695303]
[1738252624429,19.71695303,241.72,241.64,19.71695303]
[1738252624929,19.71695303,241.74,241.66,19.71695303]
[1738252625126,0.063,241.81,241.72,19.71695303]
[1738252625325,0.063,241.81,241.77,19.71695303]
[1738252625701,0.063,241.81,241.76,4.1362]
[1738252625902,19.71695303,241.77,241.69,19.71695303]
[1738252626115,0.77563439,241.76,241.69,19.71695303]
[1738252626320,19.71695303,241.75,241.67,23.85475303]
[1738252626705,0.775675,241.74,241.67,23.85475303]
[1738252627101,19.71695303,241.71,241.65,4.1381]
[1738252627437,19.71695303,241.69,241.63,4.1384]
[1738252627829,19.71695303,241.71,241.63,23.85535303]
[1738252628401,0.77584426,241.7,241.63,23.85535303]
[1738252629228,19.71695303,241.71,241.63,23.85535303]
[1738252629834,19.71695303,241.64,241.5,19.71695303]
[1738252630041,19.71695303,241.57,241.51,4.1406]
[1738252630410,19.71695303,241.59,241.51,4.1406]
[1738252630626,0.77627512,241.58,241.51,4.1406]
[1738252631130,19.71695303,241.57,241.48,19.71695303]
[1738252631301,19.71695303,241.57,241.5,19.71695303]
[1738252631505,20.49323616,241.61,241.52,19.71695303]
[1738252631927,19.71695303,241.63,241.54,19.71695303]
[1738252632813,19.71695303,241.61,241.52,19.71695303]
[1738252633023,19.71695303,241.61,241.53,4.1402]
[1738252633325,0.77611851,241.6,241.53,4.1402]
[1738252633531,19.71695303,241.59,241.53,4.1402]
[1738252634833,19.71695303,241.61,241.53,4.1402]
[1738252635831,19.71695303,241.61,241.53,14.4908]
[1738252636314,19.71695303,241.59,241.53,4.1402]
[1738252638135,19.71695303,241.61,241.54,19.71695303]
[1738252639237,19.71695303,241.61,241.55,4.1399]
[1738252639746,19.71695303,241.63,241.55,14.4897]
[1738252639923,19.71695303,241.63,241.56,19.71695303]
[1738252640732,19.71695303,241.65,241.58,19.71695303]
[1738252641040,19.71695303,241.67,241.58,19.71695303]
[1738252641517,19.71695303,241.65,241.59,14.4873]
[1738252641712,19.71695303,241.65,241.59,4.1392]
[1738252642236,19.71695303,241.63,241.59,4.1392]
[1738252642451,19.71695303,241.65,241.59,4.1392]
[1738252643655,19.71695303,241.65,241.57,14.4884]
[1738252643933,0.77595573,241.77,241.63,19.71695303]
[1738252644132,19.71695303,241.74,241.66,19.71695303]
[1738252644341,19.77995303,241.8,241.57,35.1863]
[1738252644342,19.71695303,241.7,241.62,19.71695303]
[1738252644650,19.71695303,241.66,241.57,14.4884]
[1738252645134,19.71695303,241.64,241.57,14.4884]
[1738252645520,19.71695303,241.66,241.59,19.71695303]
[1738252645715,19.71695303,241.66,241.6,4.139]
[1738252646552,19.71695303,241.62,241.53,30.06755303]